{"text_format":"3","workbook":"xlsx","n_sheets":1,"sheets":["Neprofitni proračun"],"not_rendered":{"charts":2,"images":1,"defined_names":1},"read":"whole","date_system":"1900"}

{"sheet":"Neprofitni proračun","index":0,"n_rows":40,"n_cols":7,"rows_kept":40,"merged":[[16,1,16,6],[21,1,21,5]]}
[null,"Neprofitni proračun",{"$nulls":3},"FISKALNA GODINA",2012]
{"$rows_empty":7}
[null,null,{"$f":"CONCATENATE(\"FG \",FG-1)","v":"FG 2011"},{"$f":"CONCATENATE(\"FG \",FG)","v":"FG 2012"},{"$f":"CONCATENATE(\"FG \",FG)","v":"FG 2012"},{"$f":"CONCATENATE(\"FG \",FG)","v":"FG 2012"},{"$f":"CONCATENATE(\"FG \",FG)","v":"FG 2012"}]
[null,"PRIHOD","PRETHODNA GODINA","PREDLOŽENO","STVARNO","ODSTUPANJE","+/- PRETHODNA GODINA"]
[null,"Skupljanje dobrotvornih priloga i događaji",{"v":150000,"d":"150000.00"},{"v":200000,"d":"200000.00"},{"v":180000,"d":"180000.00"},{"$f":"TablicaPrihoda[[#This Row],[STVARNO]]-TablicaPrihoda[PREDLOŽENO]","v":{"v":-20000,"d":"-20000.00 "}},{"$f":"TablicaPrihoda[[#This Row],[STVARNO]]-TablicaPrihoda[[#This Row],[PRETHODNA GODINA]]","v":{"v":30000,"d":"30000.00"}}]
[null,"Zaklada",{"v":50000,"d":"50000.00"},{"v":50000,"d":"50000.00"},{"v":50000,"d":"50000.00"},{"$f":"TablicaPrihoda[[#This Row],[STVARNO]]-TablicaPrihoda[PREDLOŽENO]","v":{"v":0,"d":"0.00"}},{"$f":"TablicaPrihoda[[#This Row],[STVARNO]]-TablicaPrihoda[[#This Row],[PRETHODNA GODINA]]","v":{"v":0,"d":"0.00"}}]
[null,"Donacije",{"v":30000,"d":"30000.00"},{"v":40000,"d":"40000.00"},{"v":20000,"d":"20000.00"},{"$f":"TablicaPrihoda[[#This Row],[STVARNO]]-TablicaPrihoda[PREDLOŽENO]","v":{"v":-20000,"d":"-20000.00 "}},{"$f":"TablicaPrihoda[[#This Row],[STVARNO]]-TablicaPrihoda[[#This Row],[PRETHODNA GODINA]]","v":{"v":-10000,"d":"-10000.00 "}}]
[null,"Prihod od kamata",{"$nulls":3},{"$f":"TablicaPrihoda[[#This Row],[STVARNO]]-TablicaPrihoda[PREDLOŽENO]","v":{"v":0,"d":"0.00"}},{"$f":"TablicaPrihoda[[#This Row],[STVARNO]]-TablicaPrihoda[[#This Row],[PRETHODNA GODINA]]","v":{"v":0,"d":"0.00"}}]
[null,"Razno",{"$nulls":3},{"$f":"TablicaPrihoda[[#This Row],[STVARNO]]-TablicaPrihoda[PREDLOŽENO]","v":{"v":0,"d":"0.00"}},{"$f":"TablicaPrihoda[[#This Row],[STVARNO]]-TablicaPrihoda[[#This Row],[PRETHODNA GODINA]]","v":{"v":0,"d":"0.00"}}]
[null,"UKUPNO",{"$f":"SUBTOTAL(109,TablicaPrihoda[PRETHODNA GODINA])","v":{"v":230000,"d":"230,000.00 kn"}},{"$f":"SUBTOTAL(109,TablicaPrihoda[PREDLOŽENO])","v":{"v":290000,"d":"290,000.00 kn"}},{"$f":"SUBTOTAL(109,TablicaPrihoda[STVARNO])","v":{"v":250000,"d":"250,000.00 kn"}},{"$f":"SUBTOTAL(109,TablicaPrihoda[ODSTUPANJE])","v":{"v":-40000,"d":"-40,000.00 kn"}},{"$f":"SUBTOTAL(105,TablicaPrihoda[+/- PRETHODNA GODINA])","v":{"v":-10000,"d":"-10,000.00 kn"}}]
{"$rows_empty":8}
[null,null,{"$f":"CONCATENATE(\"FG \",FG-1)","v":"FG 2011"},{"$f":"CONCATENATE(\"FG \",FG)","v":"FG 2012"},{"$f":"CONCATENATE(\"FG \",FG)","v":"FG 2012"},{"$f":"CONCATENATE(\"FG \",FG)","v":"FG 2012"},{"$f":"CONCATENATE(\"FG \",FG)","v":"FG 2012"}]
[null,"RASHODI","PRETHODNA GODINA","PREDLOŽENO","STVARNO","ODSTUPANJE","+/- PRETHODNA GODINA"]
[null,"Plaće",{"v":15000,"d":"15,000.00"},{"v":30000,"d":"30,000.00"},{"v":30000,"d":"30,000.00"},{"$f":"TablicaIzdataka[[#This Row],[STVARNO]]-TablicaIzdataka[PREDLOŽENO]","v":{"v":0,"d":"0.00"}},{"$f":"TablicaIzdataka[[#This Row],[STVARNO]]-TablicaIzdataka[[#This Row],[PRETHODNA GODINA]]","v":{"v":15000,"d":"15,000.00"}}]
[null,"Dodaci",{"v":5000,"d":"5,000.00"},{"v":7500,"d":"7,500.00"},{"v":7800,"d":"7,800.00"},{"$f":"TablicaIzdataka[[#This Row],[STVARNO]]-TablicaIzdataka[PREDLOŽENO]","v":{"v":300,"d":"300.00"}},{"$f":"TablicaIzdataka[[#This Row],[STVARNO]]-TablicaIzdataka[[#This Row],[PRETHODNA GODINA]]","v":{"v":2800,"d":"2,800.00"}}]
[null,"Najam",{"v":6000,"d":"6,000.00"},{"v":6000,"d":"6,000.00"},{"v":6000,"d":"6,000.00"},{"$f":"TablicaIzdataka[[#This Row],[STVARNO]]-TablicaIzdataka[PREDLOŽENO]","v":{"v":0,"d":"0.00"}},{"$f":"TablicaIzdataka[[#This Row],[STVARNO]]-TablicaIzdataka[[#This Row],[PRETHODNA GODINA]]","v":{"v":0,"d":"0.00"}}]
[null,"Režije",{"v":1000,"d":"1,000.00"},{"v":1200,"d":"1,200.00"},{"v":1150,"d":"1,150.00"},{"$f":"TablicaIzdataka[[#This Row],[STVARNO]]-TablicaIzdataka[PREDLOŽENO]","v":{"v":-50,"d":"-50.00 "}},{"$f":"TablicaIzdataka[[#This Row],[STVARNO]]-TablicaIzdataka[[#This Row],[PRETHODNA GODINA]]","v":{"v":150,"d":"150.00"}}]
[null,"Putovanja i sastanci",{"v":2500,"d":"2,500.00"},{"v":2000,"d":"2,000.00"},{"v":2800,"d":"2,800.00"},{"$f":"TablicaIzdataka[[#This Row],[STVARNO]]-TablicaIzdataka[PREDLOŽENO]","v":{"v":800,"d":"800.00"}},{"$f":"TablicaIzdataka[[#This Row],[STVARNO]]-TablicaIzdataka[[#This Row],[PRETHODNA GODINA]]","v":{"v":300,"d":"300.00"}}]
[null,"Naknade za stručnjake",{"$nulls":3},{"$f":"TablicaIzdataka[[#This Row],[STVARNO]]-TablicaIzdataka[PREDLOŽENO]","v":{"v":0,"d":"0.00"}},{"$f":"TablicaIzdataka[[#This Row],[STVARNO]]-TablicaIzdataka[[#This Row],[PRETHODNA GODINA]]","v":{"v":0,"d":"0.00"}}]
[null,"Marketing/oglašavanje",{"$nulls":3},{"$f":"TablicaIzdataka[[#This Row],[STVARNO]]-TablicaIzdataka[PREDLOŽENO]","v":{"v":0,"d":"0.00"}},{"$f":"TablicaIzdataka[[#This Row],[STVARNO]]-TablicaIzdataka[[#This Row],[PRETHODNA GODINA]]","v":{"v":0,"d":"0.00"}}]
[null,"Osiguranje",{"$nulls":3},{"$f":"TablicaIzdataka[[#This Row],[STVARNO]]-TablicaIzdataka[PREDLOŽENO]","v":{"v":0,"d":"0.00"}},{"$f":"TablicaIzdataka[[#This Row],[STVARNO]]-TablicaIzdataka[[#This Row],[PRETHODNA GODINA]]","v":{"v":0,"d":"0.00"}}]
[null,"Telefon",{"$nulls":3},{"$f":"TablicaIzdataka[[#This Row],[STVARNO]]-TablicaIzdataka[PREDLOŽENO]","v":{"v":0,"d":"0.00"}},{"$f":"TablicaIzdataka[[#This Row],[STVARNO]]-TablicaIzdataka[[#This Row],[PRETHODNA GODINA]]","v":{"v":0,"d":"0.00"}}]
[null,"Web-naknade (web-mjesto, mjesto za sastanak itd.)",{"$nulls":3},{"$f":"TablicaIzdataka[[#This Row],[STVARNO]]-TablicaIzdataka[PREDLOŽENO]","v":{"v":0,"d":"0.00"}},{"$f":"TablicaIzdataka[[#This Row],[STVARNO]]-TablicaIzdataka[[#This Row],[PRETHODNA GODINA]]","v":{"v":0,"d":"0.00"}}]
[null,"Oprema",{"$nulls":3},{"$f":"TablicaIzdataka[[#This Row],[STVARNO]]-TablicaIzdataka[PREDLOŽENO]","v":{"v":0,"d":"0.00"}},{"$f":"TablicaIzdataka[[#This Row],[STVARNO]]-TablicaIzdataka[[#This Row],[PRETHODNA GODINA]]","v":{"v":0,"d":"0.00"}}]
[null,"Pribor",{"$nulls":3},{"$f":"TablicaIzdataka[[#This Row],[STVARNO]]-TablicaIzdataka[PREDLOŽENO]","v":{"v":0,"d":"0.00"}},{"$f":"TablicaIzdataka[[#This Row],[STVARNO]]-TablicaIzdataka[[#This Row],[PRETHODNA GODINA]]","v":{"v":0,"d":"0.00"}}]
[null,"Poštarina",{"$nulls":3},{"$f":"TablicaIzdataka[[#This Row],[STVARNO]]-TablicaIzdataka[PREDLOŽENO]","v":{"v":0,"d":"0.00"}},{"$f":"TablicaIzdataka[[#This Row],[STVARNO]]-TablicaIzdataka[[#This Row],[PRETHODNA GODINA]]","v":{"v":0,"d":"0.00"}}]
[null,"UKUPNO",{"$f":"SUBTOTAL(109,TablicaIzdataka[PRETHODNA GODINA])","v":{"v":29500,"d":"29,500.00 kn"}},{"$f":"SUBTOTAL(109,TablicaIzdataka[PREDLOŽENO])","v":{"v":46700,"d":"46,700.00 kn"}},{"$f":"SUBTOTAL(109,TablicaIzdataka[STVARNO])","v":{"v":47750,"d":"47,750.00 kn"}},{"$f":"SUBTOTAL(109,TablicaIzdataka[ODSTUPANJE])","v":{"v":1050,"d":"1,050.00 kn"}},{"$f":"SUBTOTAL(109,TablicaIzdataka[+/- PRETHODNA GODINA])","v":{"v":18250,"d":"18,250.00 kn"}}]